[Event "VIII Lorca Open-A 2019"]
[Site "Lorca"]
[Date "2019.12.28"]
[Round "5.16"]
[White "Arias Igual, Alejandro"]
[Black "Budnikov, Oleg"]
[Result "1/2-1/2"]
[ECO "B06"]
[WhiteElo "2208"]
[BlackElo "2429"]
[Annotator "ChessBase"]
[PlyCount "73"]
[EventDate "2019.12.26"]
[EventType "swiss"]
[EventCountry "ESP"]
[SourceTitle "playchess.com"]
[Source "ChessBase"]
[SourceQuality "1"]
[TimeControl "5400+30"]

1. d4 {[%emt 0:01:45]} d6 {[%emt 0:00:12]} 2. Nf3 {[%emt 0:02:37]} g6 {[%emt 0:00:12]} 3. e4 {[%emt 0:03:09]} Bg7 {[%emt 0:00:09]} 4. h3 {[%emt 0:00:29]} Nd7 {[%emt 0:03:24]} 5. Nc3 {[%emt 0:04:42]} a6 {[%emt 0:01:09]} 6. a4 {[%emt 0:00:58]} b6 {[%emt 0:01:38]} 7. Be2 {[%emt 0:03:22]} e6 {[%emt 0:00:15]} 8. O-O {[%emt 0:05:02]} Bb7 {[%emt 0:00:19]} 9. Be3 {[%emt 0:01:30]} Ne7 {[%emt 0:00:48]} 10. Qd2 {[%emt 0:01:48]} h6 {[%emt 0:00:13]} 11. Nh2 {[%emt 1:10:08]} f5 12. exf5 {[%emt 0:00:00]} Nxf5 {[%emt 0:05:52]} 13. Bf3 {[%emt 0:01:00]} d5 14. Ne2 h5 15. Rae1 O-O 16. c3 Nxe3 17. Qxe3 e5 18. dxe5 Nxe5 19. Nd4 Qf6 20. Bd1 c5 21. Ndf3 Nc4 22. Qc1 b5 23. Bb3 Rae8 24. axb5 axb5 25. Rxe8 {[%emt 0:00:00]} Rxe8 {[%emt 0:06:11]} 26. Re1 {[%emt 0:06:30]} Rxe1+ 27. Qxe1 Nd6 28. Qe3 c4 29. Bc2 b4 30. Nd4 b3 31. Bb1 Ne4 32. Nhf3 Qa6 33. Qf4 Qa8 34. Ne6 Qe8 35. Nxg7 {[%emt 0:00:00]} Kxg7 {[%emt 0:30:00]} 36. Nd4 {[%emt 0:00:00]} Qe7 {[%emt 0:26:51]} 37. Bxe4 {[%emt 0:00:00]} 1/2-1/2

[Event "VIII Lorca Open-A 2019"]
[Site "Lorca"]
[Date "2019.12.28"]
[Round "5.16"]
[White "Arias Igual, Alejandro"]
[Black "Budnikov, Oleg"]
[Result "*"]
[ECO "D37"]
[WhiteElo "2208"]
[BlackElo "2429"]
[Annotator "NA"]
[PlyCount "24"]
[EventDate "2019.12.26"]
[EventType "swiss"]
[EventCountry "ESP"]
[SourceTitle "playchess.com"]
[Source "ChessBase"]
[SourceQuality "1"]
[TimeControl "5400+30"]

1. e3 {[%emt 0:04:33]} d5 {[%emt 0:00:22]} 2. Nf3 {[%emt 0:00:18]} Nf6 {[%emt 0:00:17]} 3. c4 {[%emt 0:00:06]} e6 {[%emt 0:00:23]} 4. d4 {[%emt 0:00:05]} Nbd7 {[%emt 0:01:15]} 5. Nc3 {[%emt 0:00:34]} Be7 {[%emt 0:00:17]} 6. Qc2 {[%emt 0:10:30]} O-O {[%emt 0:01:25]} 7. cxd5 {[%emt 0:01:38]} exd5 {[%emt 0:00:48]} 8. g4 {[%emt 0:07:27]} c6 {[%emt 1:29:13]} 9. g5 {[%emt 0:00:52]} Nh5 {[%emt 0:00:50]} 10. Bd3 {[%emt 0:09:06]} g6 {[%emt 0:02:25]} 11. Bd2 {[%emt 0:00:45]} Re8 {[%emt 0:04:25]} 12. O-O-O {[%emt 0:00:29]} Nf8 {[%emt 0:00:31]} *

[Event "VIII Lorca Open-A 2019"]
[Site "Lorca"]
[Date "2019.12.29"]
[Round "6.1"]
[White "Bernadskiy, Vitaliy"]
[Black "Sadzikowski, Daniel"]
[Result "1-0"]
[ECO "C01"]
[WhiteElo "2593"]
[BlackElo "2504"]
[Annotator "ChessBase"]
[PlyCount "65"]
[EventDate "2019.12.26"]
[EventType "swiss"]
[EventCountry "ESP"]
[SourceTitle "playchess.com"]
[Source "ChessBase"]
[SourceQuality "1"]
[TimeControl "5400+30"]

1. e4 {[%emt 0:00:00]} e6 {[%emt 0:01:16]} 2. d4 {[%emt 0:00:00]} d5 {[%emt 0:00:03]} 3. Bd3 {[%emt 0:00:10]} dxe4 {[%emt 0:00:05]} 4. Bxe4 {[%emt 0:00:03]} Nf6 {[%emt 0:00:05]} 5. Bf3 {[%emt 0:00:03]} c5 {[%emt 0:01:04]} 6. Ne2 {[%emt 0:00:05]} Nc6 {[%emt 0:00:36]} 7. Be3 {[%emt 0:00:05]} cxd4 {[%emt 0:00:16]} 8. Nxd4 {[%emt 0:00:05]} Ne5 {[%emt 0:00:29]} 9. Nc3 {[%emt 0:00:06]} a6 {[%emt 0:00:48]} 10. Qe2 {[%emt 0:02:43]} Nxf3+ {[%emt 0:06:54]} 11. Qxf3 {[%emt 0:00:40]} Be7 {[%emt 0:27:54]} 12. O-O-O {[%emt 0:00:20]} Qc7 {[%emt 0:04:43]} 13. g4 {[%emt 0:01:34]} O-O {[%emt 0:02:09]} 14. g5 {[%emt 0:07:37]} Ne8 {[%emt 0:00:40]} 15. h4 {[%emt 0:08:57]} Bd7 {[%emt 0:01:45]} 16. h5 {[%emt 0:01:07]} Rc8 {[%emt 0:01:56]} 17. Bf4 {[%emt 0:03:04]} Qc5 {[%emt 0:05:21]} 18. Ne4 {[%emt 0:02:24]} Qa5 {[%emt 0:04:41]} 19. Kb1 {[%emt 0:02:02]} f6 {[%emt 0:02:46]} 20. g6 {[%emt 0:03:31]} h6 {[%emt 0:02:48]} 21. Qe3 {[%emt 0:06:55]} Nc7 {[%emt 0:06:22]} 22. Nb3 {[%emt 0:01:41]} Qf5 {[%emt 0:04:24]} 23. Rxd7 {[%emt 0:02:21]} Nd5 {[%emt 0:00:04]} 24. Rxd5 {[%emt 0:09:00]} exd5 {[%emt 0:00:02]} 25. Nc3 {[%emt 0:00:20]} Rfe8 {[%emt 0:00:42]} 26. Nd4 {[%emt 0:01:07]} Qg4 {[%emt 0:02:03]} 27. f3 {[%emt 0:05:05]} Qd7 {[%emt 0:03:38]} 28. Qd3 {[%emt 0:00:13]} Bd6 {[%emt 0:02:40]} 29. Bxd6 {[%emt 0:01:29]} Qxd6 {[%emt 0:00:05]} 30. Nf5 {[%emt 0:00:07]} Qe5 {[%emt 0:03:22]} 31. f4 {[%emt 0:00:36]} Qxf4 {[%emt 0:00:56]} 32. Qxd5+ {[%emt 0:00:13]} Kh8 {[%emt 0:00:04]} 33. Nd6 {[%emt 0:00:19]} 1-0

[Event "VIII Lorca Open-A 2019"]
[Site "Lorca"]
[Date "2019.12.29"]
[Round "6.2"]
[White "Sivuk, Vitaly"]
[Black "Low, Zhen Yu Cyrus"]
[Result "1/2-1/2"]
[ECO "A49"]
[WhiteElo "2588"]
[BlackElo "2420"]
[Annotator "ChessBase"]
[PlyCount "69"]
[EventDate "2019.12.26"]
[EventType "swiss"]
[EventCountry "ESP"]
[SourceTitle "playchess.com"]
[Source "ChessBase"]
[SourceQuality "1"]
[TimeControl "5400+30"]

1. c4 {[%emt 0:07:28]} Nf6 {[%emt 0:00:00]} 2. Nf3 {[%emt 0:00:15]} g6 {[%emt 0:00:08]} 3. b3 {[%emt 0:00:07]} Bg7 {[%emt 0:01:16]} 4. Bb2 {[%emt 0:00:06]} c5 {[%emt 0:00:29]} 5. g3 {[%emt 0:00:10]} d6 {[%emt 0:00:07]} 6. d4 {[%emt 0:00:13]} Ne4 {[%emt 0:00:07]} 7. Bg2 {[%emt 0:03:26]} Qa5+ {[%emt 0:00:55]} 8. Nfd2 {[%emt 0:03:10]} Nxd2 {[%emt 0:12:16]} 9. Bc3 {[%emt 0:00:14]} Qb6 {[%emt 0:06:15]} 10. dxc5 {[%emt 0:00:12]} Nxb1 {[%emt 0:13:31]} 11. Bxg7 {[%emt 0:00:16]} Qb4+ {[%emt 0:00:54]} 12. Kf1 {[%emt 0:00:07]} Nd2+ {[%emt 0:02:08]} 13. Kg1 {[%emt 0:00:08]} Rg8 {[%emt 0:00:05]} 14. Bd4 {[%emt 0:18:08]} dxc5 {[%emt 0:18:44]} 15. Be3 {[%emt 0:00:08]} Nxc4 {[%emt 0:00:04]} 16. bxc4 {[%emt 0:00:06]} Nc6 {[%emt 0:00:15]} 17. Rb1 {[%emt 0:05:54]} Qxc4 {[%emt 0:03:11]} 18. Bd5 {[%emt 0:00:50]} Qa6 {[%emt 0:06:24]} 19. Qb3 {[%emt 0:02:30]} Nd8 {[%emt 0:00:36]} 20. Bxc5 {[%emt 0:08:40]} Be6 {[%emt 0:03:02]} 21. Bxb7 {[%emt 0:04:35]} Qxb7 {[%emt 0:02:04]} 22. Qxb7 {[%emt 0:00:10]} Nxb7 {[%emt 0:00:07]} 23. Rxb7 {[%emt 0:00:03]} O-O-O {[%emt 0:03:20]} 24. Rxa7 {[%emt 0:03:58]} Bh3 {[%emt 0:01:29]} 25. f3 {[%emt 0:00:23]} Rd1+ {[%emt 0:00:06]} 26. Kf2 {[%emt 0:00:04]} Rxh1 {[%emt 0:00:06]} 27. Ra8+ {[%emt 0:00:04]} Kd7 {[%emt 0:00:06]} 28. Rxg8 {[%emt 0:00:06]} Rxh2+ {[%emt 0:00:04]} 29. Ke1 {[%emt 0:00:23]} Be6 {[%emt 0:01:08]} 30. Ra8 {[%emt 0:00:52]} Bc4 {[%emt 0:00:27]} 31. Ra7+ {[%emt 0:00:16]} Kc6 {[%emt 0:00:07]} 32. Bf2 {[%emt 0:00:14]} Rh1+ {[%emt 0:00:15]} 33. Kd2 {[%emt 0:00:04]} Ra1 {[%emt 0:00:06]} 34. Rxe7 {[%emt 0:04:27]} Rxa2+ {[%emt 0:00:11]} 35. Ke1 {[%emt 0:00:05]} 1/2-1/2

[Event "VIII Lorca Open-A 2019"]
[Site "Lorca"]
[Date "2019.12.29"]
[Round "6.3"]
[White "Merario Alarcon, Andres"]
[Black "Narciso Dublan, Marc"]
[Result "0-1"]
[ECO "D10"]
[WhiteElo "2417"]
[BlackElo "2516"]
[Annotator "ChessBase"]
[PlyCount "62"]
[EventDate "2019.12.26"]
[EventType "swiss"]
[EventCountry "ESP"]
[SourceTitle "playchess.com"]
[Source "ChessBase"]
[SourceQuality "1"]
[TimeControl "5400+30"]

1. d4 {[%emt 0:00:00]} d5 {[%emt 0:00:00]} 2. c4 {[%emt 0:00:00]} c6 {[%emt 0:00:07]} 3. cxd5 {[%emt 0:00:07]} cxd5 {[%emt 0:00:09]} 4. Bf4 {[%emt 0:00:04]} Nc6 {[%emt 0:00:36]} 5. e3 {[%emt 0:00:07]} Nf6 {[%emt 0:00:18]} 6. Nc3 {[%emt 0:00:18]} a6 {[%emt 0:03:27]} 7. Be2 {[%emt 0:00:29]} e6 {[%emt 0:00:42]} 8. Nf3 {[%emt 0:00:17]} Be7 {[%emt 0:00:45]} 9. O-O {[%emt 0:00:28]} Nh5 {[%emt 0:01:57]} 10. Bg5 {[%emt 0:00:17]} Bxg5 {[%emt 0:01:48]} 11. Nxg5 {[%emt 0:00:09]} Qxg5 {[%emt 0:00:26]} 12. Bxh5 {[%emt 0:00:08]} O-O {[%emt 0:00:24]} 13. f4 {[%emt 0:09:24]} Qe7 {[%emt 0:00:46]} 14. Rc1 {[%emt 0:08:16]} Bd7 {[%emt 0:00:55]} 15. Na4 {[%emt 0:01:39]} Rfd8 {[%emt 0:03:04]} 16. Nb6 {[%emt 0:06:27]} Rab8 {[%emt 0:00:39]} 17. Rc5 {[%emt 0:11:34]} Be8 {[%emt 0:01:48]} 18. Qb3 {[%emt 0:02:05]} Rd6 {[%emt 0:03:47]} 19. Na4 {[%emt 0:29:13]} Qd8 {[%emt 0:06:54]} 20. Rc3 {[%emt 0:04:20]} Na5 {[%emt 0:09:34]} 21. Qd1 {[%emt 0:07:30]} Nc4 {[%emt 0:02:09]} 22. Be2 {[%emt 0:03:58]} Qa5 {[%emt 0:13:11]} 23. Bxc4 {[%emt 0:01:02]} dxc4 {[%emt 0:00:14]} 24. Ra3 {[%emt 0:01:16]} Qb4 {[%emt 0:08:27]} 25. Qe1 {[%emt 0:01:19]} a5 {[%emt 0:02:43]} 26. Qc3 {[%emt 0:03:23]} b6 {[%emt 0:01:22]} 27. Qc2 {[%emt 0:00:11]} f6 {[%emt 0:01:42]} 28. Nc3 {[%emt 0:01:45]} b5 {[%emt 0:01:59]} 29. Ne4 {[%emt 0:01:23]} Bg6 {[%emt 0:00:34]} 30. f5 {[%emt 0:00:08]} Bxf5 {[%emt 0:00:12]} 31. Rxf5 {[%emt 0:00:04]} exf5 {[%emt 0:00:05]} 0-1

[Event "VIII Lorca Open-A 2019"]
[Site "Lorca"]
[Date "2019.12.29"]
[Round "6.6"]
[White "Klekowski, Maciej"]
[Black "Krysa, Leandro"]
[Result "1/2-1/2"]
[ECO "A13"]
[WhiteElo "2514"]
[BlackElo "2527"]
[Annotator "ChessBase"]
[PlyCount "54"]
[EventDate "2019.12.26"]
[EventType "swiss"]
[EventCountry "ESP"]
[SourceTitle "playchess.com"]
[Source "ChessBase"]
[SourceQuality "1"]
[TimeControl "5400+30"]

1. c4 {[%emt 1:30:30]} e6 {[%emt 1:30:30]} 2. Nf3 {[%emt 0:00:30]} d5 {[%emt 0:00:30]} 3. g3 {[%emt 0:00:30]} dxc4 {[%emt 0:00:30]} 4. Qa4+ {[%emt 0:00:30]} Nd7 {[%emt 0:00:30]} 5. Qxc4 {[%emt 0:00:30]} a6 {[%emt 0:00:30]} 6. Bg2 {[%emt 0:00:30]} b5 {[%emt 0:00:30]} 7. Qc2 {[%emt 0:00:30]} Bb7 {[%emt 0:00:30]} 8. O-O {[%emt 0:00:30]} c5 {[%emt 0:00:30]} 9. a4 {[%emt 0:00:30]} Ngf6 {[%emt 0:00:30]} 10. Nc3 {[%emt 0:00:30]} Qb6 {[%emt 0:00:30]} 11. axb5 {[%emt 0:00:30]} axb5 {[%emt 0:00:30]} 12. Rxa8+ {[%emt 0:00:30]} Bxa8 {[%emt 0:00:30]} 13. d3 {[%emt 0:00:30]} Be7 {[%emt 0:00:30]} 14. Be3 {[%emt 0:00:30]} O-O {[%emt 0:00:30]} 15. h3 {[%emt 0:00:30]} Qa6 {[%emt 0:00:30]} 16. Qb3 {[%emt 0:00:30]} b4 {[%emt 0:00:30]} 17. Nb1 {[%emt 0:00:30]} Bd5 {[%emt 0:00:30]} 18. Qc2 {[%emt 0:00:30]} c4 {[%emt 0:00:30]} 19. Rc1 {[%emt 0:00:30]} cxd3 {[%emt 0:00:30]} 20. Qxd3 {[%emt 0:00:30]} Qxd3 {[%emt 0:00:30]} 21. exd3 {[%emt 0:00:30]} Ra8 {[%emt 0:00:30]} 22. Nbd2 {[%emt 0:00:30]} h6 {[%emt 0:00:30]} 23. Bd4 {[%emt 0:00:30]} Ne8 {[%emt 0:00:30]} 24. Nc4 {[%emt 0:00:30]} Rc8 {[%emt 0:00:30]} 25. Nfd2 {[%emt 0:00:30]} Bxg2 {[%emt 0:00:30]} 26. Kxg2 {[%emt 0:00:30]} Nd6 {[%emt 0:00:30]} 27. Ra1 {[%emt 0:00:30]} Nb5 {[%emt 0:00:30]} 1/2-1/2

[Event "VIII Lorca Open-A 2019"]
[Site "Lorca"]
[Date "2019.12.29"]
[Round "6.7"]
[White "Marin, Mihail"]
[Black "Mieles Palau, Daniel"]
[Result "1-0"]
[ECO "A13"]
[WhiteElo "2496"]
[BlackElo "2382"]
[Annotator "ChessBase"]
[PlyCount "107"]
[EventDate "2019.12.26"]
[EventType "swiss"]
[EventCountry "ESP"]
[SourceTitle "playchess.com"]
[Source "ChessBase"]
[SourceQuality "1"]
[TimeControl "5400+30"]

1. c4 {[%emt 0:00:00]} e6 {[%emt 0:00:54]} 2. g3 {[%emt 0:00:00]} d5 {[%emt 0:00:35]} 3. Bg2 {[%emt 0:00:00]} dxc4 {[%emt 0:00:59]} 4. Nf3 {[%emt 0:00:03]} a6 {[%emt 0:00:26]} 5. O-O {[%emt 0:00:08]} Nf6 {[%emt 0:05:46]} 6. Qc2 {[%emt 0:00:14]} Bd6 {[%emt 0:03:15]} 7. Qxc4 {[%emt 0:05:24]} b5 {[%emt 0:00:05]} 8. Qc2 {[%emt 0:00:06]} Bb7 {[%emt 0:00:17]} 9. a4 {[%emt 0:00:08]} Nbd7 {[%emt 0:03:19]} 10. Nc3 {[%emt 0:01:06]} b4 {[%emt 0:02:54]} 11. Nd1 {[%emt 0:02:08]} c5 {[%emt 0:00:16]} 12. Ne3 {[%emt 0:00:14]} a5 {[%emt 0:00:15]} 13. Nc4 {[%emt 0:00:16]} Be7 {[%emt 0:00:04]} 14. d3 {[%emt 0:01:14]} Rc8 {[%emt 0:00:58]} 15. Nfd2 {[%emt 0:00:24]} Bxg2 {[%emt 0:02:18]} 16. Kxg2 {[%emt 0:00:06]} Nb8 {[%emt 0:00:10]} 17. Nb3 {[%emt 0:08:09]} Nc6 {[%emt 0:00:06]} 18. e4 {[%emt 0:01:49]} Nd4 {[%emt 0:08:29]} 19. Qd1 {[%emt 0:23:36]} Nxb3 {[%emt 0:00:27]} 20. Qxb3 {[%emt 0:00:04]} Nd7 {[%emt 0:00:20]} 21. Be3 {[%emt 0:01:53]} O-O {[%emt 0:03:47]} 22. f4 {[%emt 0:01:20]} Rc6 {[%emt 0:02:36]} 23. Qd1 {[%emt 0:01:16]} Qa8 {[%emt 0:10:53]} 24. Qf3 {[%emt 0:03:16]} Nb6 {[%emt 0:00:11]} 25. Rfd1 {[%emt 0:05:22]} Nxc4 {[%emt 0:04:45]} 26. dxc4 {[%emt 0:00:06]} Rd8 {[%emt 0:00:03]} 27. e5 {[%emt 0:01:30]} Rcc8 {[%emt 0:01:43]} 28. Rxd8+ {[%emt 0:01:04]} Rxd8 {[%emt 0:00:05]} 29. Qxa8 {[%emt 0:00:05]} Rxa8 {[%emt 0:00:03]} 30. Rd1 {[%emt 0:00:06]} Ra7 {[%emt 0:00:02]} 31. g4 {[%emt 0:03:28]} Rb7 {[%emt 0:03:30]} 32. b3 {[%emt 0:01:07]} Kf8 {[%emt 0:00:10]} 33. f5 {[%emt 0:00:37]} Ke8 {[%emt 0:03:44]} 34. Kf3 {[%emt 0:05:50]} g6 {[%emt 0:01:20]} 35. f6 {[%emt 0:04:10]} Bf8 {[%emt 0:00:04]} 36. Ke2 {[%emt 0:00:14]} Rd7 {[%emt 0:09:32]} 37. Rf1 {[%emt 0:00:12]} h6 {[%emt 0:00:51]} 38. Rf3 {[%emt 0:00:13]} Kd8 {[%emt 0:00:06]} 39. Rh3 {[%emt 0:00:08]} g5 {[%emt 0:00:02]} 40. Rh5 {[%emt 0:03:57]} Kc7 {[%emt 0:00:04]} 41. h4 {[%emt 0:00:17]} gxh4 {[%emt 0:00:09]} 42. Rxh4 {[%emt 0:00:05]} Kc6 {[%emt 0:00:03]} 43. Rh1 {[%emt 0:06:56]} Rd8 {[%emt 0:01:39]} 44. Rd1 {[%emt 0:02:55]} Re8 {[%emt 0:00:26]} 45. Kf3 {[%emt 0:00:11]} Kc7 {[%emt 0:00:04]} 46. Kg3 {[%emt 0:00:08]} Ra8 {[%emt 0:00:10]} 47. Kh4 {[%emt 0:00:10]} Rb8 {[%emt 0:00:06]} 48. Kh5 {[%emt 0:00:08]} Rc8 {[%emt 0:00:05]} 49. Rd3 {[%emt 0:00:16]} Ra8 {[%emt 0:00:17]} 50. Bxh6 {[%emt 0:03:43]} Bxh6 {[%emt 0:00:18]} 51. Kxh6 {[%emt 0:00:04]} Rg8 {[%emt 0:00:21]} 52. g5 {[%emt 0:00:17]} Rg6+ {[%emt 0:00:55]} 53. Kh5 {[%emt 0:00:07]} Rg8 {[%emt 0:00:05]} 54. Kg4 {[%emt 0:00:00] Kd8} 1-0

[Event "VIII Lorca Open-A 2019"]
[Site "Lorca"]
[Date "2019.12.29"]
[Round "6.8"]
[White "Harutyunian, Tigran K."]
[Black "Martinez Fernandez, Adrian"]
[Result "1-0"]
[ECO "B38"]
[WhiteElo "2540"]
[BlackElo "2354"]
[Annotator "ChessBase"]
[PlyCount "87"]
[EventDate "2019.12.26"]
[EventType "swiss"]
[EventCountry "ESP"]
[SourceTitle "playchess.com"]
[Source "ChessBase"]
[SourceQuality "1"]
[TimeControl "5400+30"]

1. Nf3 {[%emt 0:00:17]} c5 {[%emt 0:00:00]} 2. c4 {[%emt 0:01:19]} g6 {[%emt 0:00:00]} 3. e4 {[%emt 0:00:22]} Bg7 {[%emt 0:01:14]} 4. d4 {[%emt 0:00:08]} cxd4 {[%emt 0:00:05]} 5. Nxd4 {[%emt 0:00:06]} Nc6 {[%emt 0:00:04]} 6. Be3 {[%emt 0:00:16]} Nf6 {[%emt 0:00:05]} 7. Nc3 {[%emt 0:00:34]} O-O {[%emt 0:00:06]} 8. Be2 {[%emt 0:00:19]} b6 {[%emt 0:00:04]} 9. O-O {[%emt 0:02:30]} Bb7 {[%emt 0:00:05]} 10. f3 {[%emt 0:00:05]} Qb8 {[%emt 0:00:06]} 11. Qd2 {[%emt 0:03:20]} Rd8 {[%emt 0:00:06]} 12. Ndb5 {[%emt 0:09:03]} d6 {[%emt 0:01:39]} 13. Nd5 {[%emt 0:02:54]} Rd7 {[%emt 0:03:17]} 14. Rfd1 {[%emt 0:01:41]} Qf8 {[%emt 0:05:36]} 15. Rac1 {[%emt 0:01:18]} Ne8 {[%emt 0:04:56]} 16. f4 {[%emt 0:05:34]} e6 {[%emt 0:07:33]} 17. Ndc3 {[%emt 0:00:26]} Rad8 {[%emt 0:06:24]} 18. Bf3 {[%emt 0:00:30]} Nc7 {[%emt 0:03:27]} 19. Nxc7 {[%emt 0:15:52]} Rxc7 {[%emt 0:00:54]} 20. Nb5 {[%emt 0:00:12]} Rcd7 {[%emt 0:00:09]} 21. e5 {[%emt 0:01:04]} dxe5 {[%emt 0:29:15]} 22. Qxd7 {[%emt 0:00:09]} Rxd7 {[%emt 0:00:03]} 23. Rxd7 {[%emt 0:00:07]} Nd4 {[%emt 0:00:28]} 24. Rxb7 {[%emt 0:14:16]} Nxf3+ {[%emt 0:00:08]} 25. gxf3 {[%emt 0:00:05]} Qa8 {[%emt 0:03:30]} 26. c5 {[%emt 0:02:49]} bxc5 {[%emt 0:03:21]} 27. Rd7 {[%emt 0:04:29]} Qxf3 {[%emt 0:03:38]} 28. Bf2 {[%emt 0:05:02]} Qxf4 {[%emt 0:05:09]} 29. Rxc5 {[%emt 0:00:59]} Qg4+ {[%emt 0:03:53]} 30. Kf1 {[%emt 0:01:09]} Bh6 {[%emt 0:04:10]} 31. Rc8+ {[%emt 0:03:41]} Kg7 {[%emt 0:00:01]} 32. Rcc7 {[%emt 0:00:08]} Qh3+ {[%emt 0:00:22]} 33. Ke1 {[%emt 0:01:20]} Qxh2 {[%emt 0:00:47]} 34. Rxf7+ {[%emt 0:00:42]} Kg8 {[%emt 0:00:01]} 35. Nd6 {[%emt 0:00:32]} Qh1+ {[%emt 0:00:35]} 36. Ke2 {[%emt 0:00:08]} Qh5+ {[%emt 0:00:06]} 37. Rf3 {[%emt 0:00:59]} Bf4 {[%emt 0:00:46]} 38. Ne4 {[%emt 0:02:28]} Qf5 {[%emt 0:00:25]} 39. Rc4 {[%emt 0:01:29]} Kg7 {[%emt 0:01:09]} 40. Bh4 {[%emt 0:01:00]} Qg4 {[%emt 0:01:10]} 41. Rc7+ {[%emt 0:00:11]} Kf8 {[%emt 0:02:12]} 42. Be7+ {[%emt 0:00:16]} Kg7 {[%emt 0:00:31]} 43. Bd6+ {[%emt 0:00:15]} Kh6 {[%emt 0:00:49]} 44. Bf8+ {[%emt 0:00:22]} 1-0

[Event "VIII Lorca Open-A 2019"]
[Site "Lorca"]
[Date "2019.12.29"]
[Round "6.10"]
[White "Mingarro Carceller, Sergi"]
[Black "Maiorov, Nikita"]
[Result "0-1"]
[ECO "C45"]
[WhiteElo "2359"]
[BlackElo "2523"]
[Annotator "ChessBase"]
[PlyCount "48"]
[EventDate "2019.12.26"]
[EventType "swiss"]
[EventCountry "ESP"]
[SourceTitle "playchess.com"]
[Source "ChessBase"]
[SourceQuality "1"]
[TimeControl "5400+30"]

1. e4 {[%emt 0:00:00]} e5 {[%emt 0:01:42]} 2. Nf3 {[%emt 0:00:00]} Nc6 {[%emt 0:00:04]} 3. d4 {[%emt 0:00:01]} exd4 {[%emt 0:00:04]} 4. Nxd4 {[%emt 0:00:09]} Bc5 {[%emt 0:00:24]} 5. Nb3 {[%emt 0:00:16]} Bb6 {[%emt 0:00:04]} 6. Qe2 {[%emt 0:00:23]} a5 {[%emt 0:01:13]} 7. a4 {[%emt 0:03:18]} Nge7 {[%emt 0:02:53]} 8. Be3 {[%emt 0:03:35]} Bxe3 {[%emt 0:05:30]} 9. Qxe3 {[%emt 0:00:31]} O-O {[%emt 0:11:04]} 10. Nc3 {[%emt 0:03:16]} f5 {[%emt 0:01:38]} 11. O-O-O {[%emt 0:07:41]} f4 {[%emt 0:00:29]} 12. Qd2 {[%emt 0:01:37]} d6 {[%emt 0:00:37]} 13. h4 {[%emt 0:06:21]} Ne5 {[%emt 0:03:43]} 14. f3 {[%emt 0:04:43]} Rf6 {[%emt 0:06:31]} 15. h5 {[%emt 0:09:17]} Bd7 {[%emt 0:01:03]} 16. Rh4 {[%emt 0:03:24]} Qf8 {[%emt 0:00:33]} 17. Be2 {[%emt 0:02:59]} Qf7 {[%emt 0:12:27]} 18. g3 {[%emt 0:13:59]} g5 {[%emt 0:19:52]} 19. hxg6 {[%emt 0:05:03]} N7xg6 {[%emt 0:00:03]} 20. Nd5 {[%emt 0:04:42]} Nxh4 {[%emt 0:02:37]} 21. Nxf6+ {[%emt 0:01:37]} Qxf6 {[%emt 0:00:04]} 22. gxh4 {[%emt 0:00:09]} Bxa4 {[%emt 0:04:22]} 23. Qd5+ {[%emt 0:01:36]} Qf7 {[%emt 0:00:17]} 24. Qxb7 {[%emt 0:00:55]} Bc6 {[%emt 0:00:23]} 0-1

[Event "VIII Lorca Open-A 2019"]
[Site "Lorca"]
[Date "2019.12.29"]
[Round "6.11"]
[White "Sosa, Tomas"]
[Black "Kiselev, Pavel"]
[Result "1/2-1/2"]
[ECO "B82"]
[WhiteElo "2520"]
[BlackElo "2303"]
[Annotator "ChessBase"]
[PlyCount "90"]
[EventDate "2019.12.26"]
[EventType "swiss"]
[EventCountry "ESP"]
[SourceTitle "playchess.com"]
[Source "ChessBase"]
[SourceQuality "1"]
[TimeControl "5400+30"]

1. e4 {[%emt 1:30:30]} c5 {[%emt 1:30:30]} 2. Nf3 {[%emt 0:00:30]} e6 {[%emt 0:00:30]} 3. d4 {[%emt 0:00:30]} cxd4 {[%emt 0:00:30]} 4. Nxd4 {[%emt 0:00:30]} Nc6 {[%emt 0:00:30]} 5. Nc3 {[%emt 0:00:30]} Qc7 {[%emt 0:00:30]} 6. Be3 {[%emt 0:00:30]} Nf6 {[%emt 0:00:30]} 7. f4 {[%emt 0:00:30]} d6 {[%emt 0:00:30]} 8. Qf3 {[%emt 0:00:30]} Be7 {[%emt 0:00:30]} 9. O-O-O {[%emt 0:00:30]} O-O {[%emt 0:00:30]} 10. Ndb5 {[%emt 0:00:30]} Qb8 {[%emt 0:00:30]} 11. g4 {[%emt 0:00:30]} a6 {[%emt 0:00:30]} 12. Nd4 {[%emt 0:00:30]} Nxd4 {[%emt 0:00:30]} 13. Bxd4 {[%emt 0:00:30]} e5 {[%emt 0:00:30]} 14. g5 {[%emt 0:00:30]} Bg4 {[%emt 0:00:30]} 15. Qg3 {[%emt 0:00:30]} exd4 {[%emt 0:00:30]} 16. gxf6 {[%emt 0:00:30]} dxc3 {[%emt 0:00:30]} 17. h3 {[%emt 0:00:30]} Bxf6 {[%emt 0:00:30]} 18. hxg4 {[%emt 0:00:30]} Qc7 {[%emt 0:00:30]} 19. g5 {[%emt 0:00:30]} cxb2+ {[%emt 0:00:30]} 20. Kb1 {[%emt 0:00:30]} Rfc8 {[%emt 0:00:30]} 21. Qh2 {[%emt 0:00:30]} Bc3 {[%emt 0:00:30]} 22. Qxh7+ {[%emt 0:00:30]} Kf8 {[%emt 0:00:30]} 23. e5 {[%emt 0:00:30]} dxe5 {[%emt 0:00:30]} 24. Bc4 {[%emt 0:00:30]} Qxc4 {[%emt 0:00:30]} 25. Rd7 {[%emt 0:00:30]} Ke8 {[%emt 0:00:30]} 26. Rxb7 {[%emt 0:00:30]} Rc7 {[%emt 0:00:30]} 27. Rxc7 {[%emt 0:00:30]} Qxc7 {[%emt 0:00:30]} 28. Qg8+ {[%emt 0:00:30]} Ke7 {[%emt 0:00:30]} 29. Qxa8 {[%emt 0:00:30]} exf4 {[%emt 0:00:30]} 30. Qxa6 {[%emt 0:00:30]} g6 {[%emt 0:00:30]} 31. Qa3+ {[%emt 0:00:30]} Ke6 {[%emt 0:00:30]} 32. Rh3 {[%emt 0:00:30]} Be5 {[%emt 0:00:30]} 33. Qd3 {[%emt 0:00:30]} Qe7 {[%emt 0:00:30]} 34. Qc4+ {[%emt 0:00:30]} Kf5 {[%emt 0:00:30]} 35. Rh7 {[%emt 0:00:30]} Kxg5 {[%emt 0:00:30]} 36. Rxf7 {[%emt 0:00:30]} Qd6 {[%emt 0:00:30]} 37. Qe2 {[%emt 0:00:30]} Qd5 {[%emt 0:00:30]} 38. Rh7 {[%emt 0:00:30]} f3 {[%emt 0:00:30]} 39. Qe3+ {[%emt 0:00:30]} Kf5 {[%emt 0:00:30]} 40. Rh1 {[%emt 0:00:30]} Qe4 {[%emt 0:00:30]} 41. Qd2 {[%emt 0:00:30]} g5 {[%emt 0:00:30]} 42. Qd7+ {[%emt 0:00:30]} Kf4 {[%emt 0:00:30]} 43. Qd2+ {[%emt 0:00:30]} Kf5 {[%emt 0:00:30]} 44. Qd7+ {[%emt 0:00:30]} Kf4 {[%emt 0:00:30]} 45. Qd2+ {[%emt 0:00:30]} Kf5 {[%emt 0:00:30]} 1/2-1/2